bitfinex-derivatives/quotes_SOLF0:USTF0_20250720
["timestamp","ask_amount","ask_price","bid_price","bid_amount"]
[1753037043864,3.11,181.35,181.34,3.06]
[1753037044462,8.6217,181.35,181.34,3.06]
[1753037045660,8.6217,181.35,181.32,2.69267661]
[1753037045661,3.11,181.34,181.33,3.06]
[1753037046863,3.11,181.34,181.33,8.5724]
[1753037049268,3.11,181.34,181.33,3.06]
[1753037052070,3.11,181.4,181.33,8.5721]
[1753037052272,3.11,181.4,181.34,5.75267661]
[1753037052770,5.5117,181.36,181.34,5.75267661]
[1753037052970,3.11,181.35,181.34,5.75267661]
[1753037053970,8.6217,181.35,181.34,5.75267661]
[1753037055169,8.6217,181.35,181.34,2.69267661]
[1753037055769,3.11,181.36,181.34,5.75267661]
[1753037055963,11.0183,181.44,181.35,3.06]
[1753037055964,2.69267661,181.42,181.35,3.06]
[1753037056167,3.11,181.39,181.31,3.06]
[1753037056375,5.5122,181.34,181.32,3.06]
[1753037057070,3.11,181.33,181.32,3.06]
[1753037058877,8.6224,181.33,181.32,3.06]
[1753037059077,3.11,181.32,181.31,101.64]
[1753037060075,3.11,181.32,181.31,104.7]
[1753037062277,8.6227,181.32,181.31,104.7]
[1753037062877,8.6227,181.32,181.31,101.64]
[1753037063772,3.11,181.28,181.26,5.75267661]
[1753037063980,3.11,181.27,181.26,2.69267661]
[1753037064177,3.11,181.27,181.26,104.33267661]
[1753037064676,3.11,181.27,181.26,107.39267661]
[1753037064876,3.11,181.27,181.26,112.90717661]
[1753037065072,3.11,181.27,181.26,104.7]
[1753037066873,3.11,181.31,181.27,3.06]
[1753037067079,3.11,181.35,181.32,3.06]
[1753037067472,5.5122,181.34,181.33,3.06]
[1753037068175,8.5022,181.34,181.33,3.06]
[1753037068978,5.5124,181.33,181.31,107.1529]
[1753037069171,2.69267661,181.38,181.3,5.78267661]
[1753037069376,2.69267661,181.38,181.31,101.62]
[1753037069771,2.99,181.37,181.31,101.62]
[1753037070377,2.69267661,181.36,181.31,101.62]
[1753037070578,5.5127,181.32,181.31,101.62]
[1753037070882,2.99,181.32,181.28,104.71]
[1753037071179,8.5036,181.29,181.28,104.71]
[1753037071376,8.5036,181.29,181.28,101.62]
[1753037071778,8.5036,181.29,181.28,104.71]
[1753037071984,2.99,181.29,181.28,110.2239]
[1753037072178,2.99,181.29,181.28,104.71]
[1753037072480,2.99,181.3,181.29,3.09]
[1753037073980,5.513,181.31,181.28,107.1337]
[1753037074179,8.503,181.31,181.3,3.09]
[1753037075186,5.5133,181.3,181.28,107.1337]
[1753037075487,8.5033,181.3,181.29,3.09]
[1753037077483,5.5137,181.29,181.28,3.09]
[1753037077690,5.5137,181.29,181.28,104.71]
[1753037078188,8.5037,181.29,181.28,104.71]
[1753037078388,8.5037,181.29,181.28,101.62]
[1753037078588,8.5037,181.29,181.26,3.09]
[1753037078589,5.5142,181.27,181.26,104.71]
[1753037078777,8.5042,181.27,181.26,104.71]
[1753037080185,8.504,181.28,181.27,3.09]
[1753037081584,5.514,181.28,181.27,3.09]
[1753037082485,8.504,181.28,181.27,3.09]
[1753037083682,8.5037,181.29,181.27,3.09]
[1753037083990,2.99,181.29,181.27,3.09]
[1753037084186,2.99,181.29,181.26,104.31267661]
[1753037084187,2.69267661,181.34,181.26,104.31267661]
[1753037084382,2.99,181.3,181.28,3.09]
[1753037084586,8.5034,181.3,181.28,3.09]
[1753037084783,2.69267661,181.36,181.3,3.09]
[1753037084983,2.99,181.35,181.3,3.09]
[1753037085187,2.99,181.35,181.31,3.09]
[1753037085690,5.5127,181.32,181.31,3.09]
[1753037085885,8.5027,181.32,181.31,3.09]
[1753037086193,2.99,181.37,181.29,104.69]
[1753037086492,8.5033,181.3,181.29,104.69]
[1753037086688,2.69267661,181.36,181.29,110.2036]
[1753037086894,5.68267661,181.39,181.31,3.09]
[1753037087193,2.99,181.38,181.31,3.09]
[1753037087893,5.5127,181.32,181.31,3.09]
[1753037088094,8.5027,181.32,181.31,3.09]
[1753037088485,5.5127,181.32,181.31,3.09]
[1753037088691,5.5124,181.33,181.31,3.09]
[1753037088892,2.99,181.36,181.29,3.09]
[1753037089193,5.5131,181.31,181.3,101.58]
[1753037089391,8.5031,181.31,181.3,104.67]
[1753037089999,8.5031,181.31,181.3,101.58]
[1753037090296,8.5042,181.27,181.23,3.09]
[1753037090494,8.5042,181.27,181.25,3.09]
[1753037090699,2.99,181.27,181.25,3.09]
[1753037090996,8.5041,181.28,181.25,5.5146]
[1753037091198,8.5041,181.28,181.26,3.09]
[1753037092900,8.5041,181.28,181.26,5.78267661]
[1753037093100,8.5041,181.28,181.26,2.69267661]
[1753037093300,8.5041,181.28,181.27,3.09]
[1753037093601,5.5141,181.28,181.27,3.09]
[1753037095302,8.5041,181.28,181.27,3.09]
[1753037098209,8.5041,181.28,181.26,2.69267661]
[1753037098408,8.4642,181.27,181.26,5.63267661]
[1753037098709,8.4642,181.27,181.26,2.94]
[1753037100110,2.95,181.27,181.26,2.94]
[1753037101006,2.95,181.27,181.26,11.14717661]
[1753037101205,2.95,181.28,181.27,2.94]
[1753037102206,5.5137,181.29,181.27,2.94]
[1753037102808,2.95,181.28,181.26,8.20717661]
[1753037103108,2.95,181.27,181.26,2.69267661]
[1753037103308,2.95,181.27,181.26,5.63267661]
[1753037104614,2.95,181.27,181.26,11.14717661]
[1753037105012,2.95,181.28,181.27,2.94]
[1753037105207,8.4637,181.29,181.27,2.94]
[1753037105407,8.4637,181.29,181.26,8.20717661]
[1753037105710,8.4637,181.29,181.28,2.94]
[1753037105911,8.4637,181.29,181.26,11.14717661]
[1753037106106,2.95,181.28,181.27,2.94]
[1753037109908,2.95,181.29,181.28,2.94]
[1753037110215,2.95,181.29,181.27,2.94]
[1753037110809,5.5138,181.29,181.27,2.94]
[1753037111019,2.95,181.28,181.27,2.94]
[1753037112516,2.95,181.28,181.27,8.4542]
[1753037113217,2.95,181.28,181.27,2.94]
[1753037114215,2.95,181.28,181.27,8.4542]
[1753037116415,5.5139,181.28,181.25,2.94]
[1753037116717,2.95,181.27,181.26,2.94]
[1753037117117,2.95,181.27,181.26,8.4545]
[1753037117917,5.5133,181.3,181.27,5.5142]
[1753037118118,2.95,181.28,181.27,8.20687661]
[1753037118313,2.95,181.28,181.25,4.60328711]
[1753037118517,2.69267661,181.33,181.27,2.94]
[1753037118813,5.5135,181.3,181.26,104.19267661]
[1753037119021,2.95,181.35,181.29,2.94]
[1753037119318,2.95,181.35,181.26,108.79596372]
[1753037119319,2.95,181.35,181.34,4.65612534]
[1753037119712,213.29299368,181.4,181.34,1.71612534]
[1753037120017,213.29299368,181.4,181.33,101.5]
[1753037120018,2.95,181.34,181.33,101.5]
[1753037120219,2.95,181.34,181.33,107.0123]
[1753037120416,1.71612534,181.39,181.33,101.5]
[1753037120621,2.95,181.38,181.34,2.94]
[1753037121023,2.95,181.37,181.34,2.94]
[1753037121219,2.95,181.37,181.35,2.68070971]
[1753037121419,2.95,181.37,181.36,2.94]
[1753037122822,2.95,181.41,181.37,2.94]
[1753037123020,2.95,181.4,181.39,2.94]
[1753037123922,5.5098,181.42,181.39,2.94]
[1753037124123,2.95,181.41,181.39,8.4505]
[1753037124323,2.95,181.41,181.4,2.94]
[1753037125419,2.95,181.41,181.4,5.62070971]
[1753037127114,2.95,181.45,181.4,2.68070971]
[1753037127320,2.95,181.5,181.44,5.62070971]
[1753037127720,5.5083,181.47,181.44,5.62070971]
[1753037127925,2.95,181.46,181.44,5.62070971]
[1753037128123,3.2,181.45,181.44,5.62070971]
[1753037129818,3.2,181.47,181.45,2.96]
[1753037130025,3.2,181.47,181.46,5.64070971]
[1753037132130,5.5074,181.5,181.46,2.68070971]
[1753037132429,200.57292841,181.55,181.45,101.44]
[1753037132430,3.2,181.48,181.45,101.44]
[1753037132624,3.2,181.48,181.45,104.12070971]
[1753037132819,8.708,181.48,181.45,107.08070971]
[1753037133127,3.2,181.46,181.45,107.08070971]
[1753037133531,3.2,181.47,181.46,2.96]
[1753037135332,3.2,181.54,181.46,2.96]
[1753037135529,3.2,181.54,181.47,2.68070971]
[1753037135727,3.2,181.54,181.46,2.96]
[1753037136026,3.2,181.48,181.46,2.96]
[1753037136830,8.7078,181.48,181.46,2.96]
[1753037137029,3.2,181.47,181.46,2.96]
[1753037138026,5.5073,181.5,181.46,8.4684]
[1753037138231,3.2,181.49,181.47,2.68070971]
[1753037138430,3.2,181.49,181.48,2.96]
[1753037139433,3.2,181.49,181.45,107.08070971]
[1753037139734,3.2,181.49,181.47,5.64070971]
[1753037139931,3.2,181.54,181.48,2.96]
[1753037140228,3.2,181.54,181.5,2.96]
[1753037140636,5.5063,181.53,181.5,2.96]
[1753037140831,3.2,181.52,181.5,2.96]
[1753037141031,3.2,181.51,181.5,2.96]
[1753037142035,3.2,181.51,181.49,5.64070971]
[1753037142236,8.7069,181.51,181.49,2.68070971]
[1753037142535,3.2,181.5,181.49,2.68070971]
[1753037142839,8.7072,181.5,181.49,2.68070971]
[1753037143030,3.2,181.5,181.49,2.68070971]
[1753037143834,3.2,181.5,181.48,5.64070971]
[1753037144035,5.507,181.51,181.48,8.18850971]
[1753037144327,3.2,181.49,181.48,8.18850971]
[1753037144736,5.507,181.51,181.48,11.14850971]
[1753037145033,3.2,181.5,181.49,2.96]
[1753037148227,200.57292841,181.55,181.49,2.96]
[1753037148433,200.57292841,181.55,181.52,2.96]
[1753037148630,200.57292841,181.55,181.51,2.68070971]
[1753037148832,5.5062,181.54,181.51,11.14760971]
[1753037149033,3.2,181.53,181.51,11.14760971]
[1753037149939,3.2,181.52,181.51,5.64070971]
[1753037150231,3.2,181.52,181.51,2.68070971]
[1753037150736,3.2,181.52,181.51,5.64070971]
[1753037151334,3.2,181.52,181.51,2.68070971]
[1753037151939,3.2,181.52,181.51,5.64070971]
[1753037153342,3.2,181.52,181.51,11.14760971]
[1753037154444,3.2,181.52,181.51,5.64070971]
[1753037155447,8.7066,181.52,181.51,2.68070971]
[1753037155639,3.2,181.52,181.51,2.68070971]
[1753037155940,3.2,181.52,181.51,5.64070971]
[1753037158042,3.2,181.52,181.51,11.14760971]
[1753037158543,3.2,181.52,181.51,3.1]
[1753037158846,3.2,181.52,181.51,5.78070971]
[1753037159037,3.11,181.61,181.52,3.1]
[1753037159335,3.11,181.61,181.45,101.44]
[1753037159336,3.11,181.61,181.54,5.78070971]
[1753037159944,3.11,181.55,181.54,5.78070971]
[1753037160541,3.11,181.55,181.54,2.68070971]
[1753037161042,8.6157,181.55,181.54,2.68070971]
[1753037161243,3.11,181.55,181.52,5.78070971]
[1753037161744,3.11,181.54,181.53,3.1]
[1753037161942,3.11,181.54,181.52,5.78070971]
[1753037162545,3.11,181.59,181.53,3.1]
[1753037162844,5.5053,181.57,181.54,5.78070971]
[1753037163040,3.11,181.56,181.54,5.78070971]
[1753037163641,3.11,181.55,181.54,5.78070971]
[1753037163841,3.11,181.55,181.54,2.68070971]
[1753037164040,8.6157,181.55,181.54,2.68070971]
[1753037165742,5.506,181.54,181.53,2.68070971]
[1753037165941,8.616,181.54,181.53,2.68070971]
[1753037166636,8.616,181.54,181.53,5.78070971]
[1753037168141,8.616,181.54,181.53,3.1]
[1753037168340,8.616,181.54,181.53,5.78070971]
[1753037168643,3.11,181.54,181.53,5.78070971]
[1753037169243,8.616,181.54,181.53,5.78070971]
[1753037170651,5.5057,181.55,181.54,3.1]
[1753037170851,8.6157,181.55,181.54,3.1]
[1753037171045,3.11,181.55,181.54,3.1]
[1753037172147,3.11,181.57,181.54,3.1]
[1753037172346,3.11,181.57,181.56,2.68070971]
[1753037172651,3.11,181.57,181.56,5.78070971]
[1753037173555,3.11,181.57,181.56,11.28610971]
[1753037173949,3.11,181.57,181.56,5.78070971]
[1753037175051,3.11,181.6,181.57,3.1]
[1753037175250,3.11,181.6,181.59,3.1]
[1753037176048,8.6142,181.6,181.59,3.1]
[1753037176456,3.11,181.61,181.59,3.1]
[1753037176753,8.614,181.61,181.6,3.1]
[1753037176954,3.11,181.61,181.58,5.78070971]
[1753037177548,3.11,181.61,181.59,3.1]
[1753037177948,3.11,181.6,181.59,3.1]
[1753037178157,3.11,181.6,181.59,8.6045]
[1753037178349,3.11,181.6,181.59,3.1]
[1753037180062,7.64997024,181.62,181.59,3.1]
[1753037180270,7.64997024,181.62,181.61,3.1]
[1753037180556,4.53997024,181.62,181.61,3.1]
[1753037180757,4.53997024,181.62,181.61,8.6039]
[1753037181154,3.11,181.65,181.62,5.5035]
[1753037181454,3.11,181.71,181.64,2.68070971]
[1753037181957,5.5026,181.65,181.64,2.68070971]
[1753037182159,3.11,181.64,181.62,3.1]
[1753037182460,5.5034,181.63,181.61,2.68070971]
[1753037182653,3.11,181.62,181.61,5.78070971]
[1753037184852,3.11,181.62,181.59,5.78070971]
[1753037185052,3.11,181.62,181.59,2.68070971]
[1753037185258,5.5042,181.6,181.59,2.68070971]
[1753037185458,3.11,181.6,181.57,2.68070971]
[1753037185853,3.11,181.65,181.6,3.1]
[1753037186059,3.11,181.65,181.63,3.1]
[1753037186655,3.11,181.65,181.62,5.78070971]
[1753037186858,3.11,181.65,181.6,2.68070971]
[1753037187058,3.11,181.65,181.62,2.68070971]
[1753037187355,3.11,181.7,181.63,3.1]
[1753037188354,3.11,181.7,181.64,2.68070971]
[1753037188756,8.6027,181.65,181.64,2.68070971]
[1753037189150,5.5027,181.65,181.64,5.92070971]
[1753037189351,8.6027,181.65,181.64,5.92070971]
[1753037189759,8.6027,181.65,181.64,2.68070971]
[1753037189959,8.6027,181.65,181.54,101.22]
[1753037189960,3.1,181.62,181.6,2.68070971]
[1753037190160,3.1,181.62,181.6,5.92070971]
[1753037190356,3.1,181.61,181.6,5.92070971]
[1753037190558,2.68070971,181.69,181.6,5.92070971]
[1753037190859,3.1,181.68,181.6,5.92070971]
[1753037191054,5.5039,181.61,181.6,5.92070971]
[1753037191259,8.6039,181.61,181.6,5.92070971]
[1753037191461,3.1,181.68,181.6,2.68070971]
[1753037191764,3.1,181.68,181.61,3.24]
[1753037192862,5.5036,181.62,181.61,3.24]
[1753037193163,8.6036,181.62,181.61,3.24]
[1753037193863,8.6034,181.63,181.61,3.24]
[1753037194062,8.6034,181.63,181.62,3.24]
[1753037194760,5.5034,181.63,181.62,3.24]
[1753037195570,6.08883395,181.73,181.62,5.92070971]
[1753037195571,5.5025,181.66,181.62,5.92070971]
[1753037195761,5.5025,181.66,181.65,5.92070971]
[1753037196567,8.6025,181.66,181.65,5.92070971]
[1753037197066,5.5021,181.67,181.65,5.92070971]
[1753037197266,8.6021,181.67,181.66,3.24]
[1753037200661,5.5023,181.66,181.65,5.92070971]
[1753037200868,3.1,181.67,181.65,5.92070971]
[1753037201065,3.1,181.67,181.65,2.68070971]
[1753037201369,3.1,181.67,181.63,2.68070971]
[1753037201865,8.6029,181.64,181.63,5.92070971]
[1753037202472,8.6029,181.64,181.63,2.68070971]
[1753037202963,3.1,181.64,181.63,5.92070971]
[1753037204168,5.5026,181.65,181.63,5.92070971]
[1753037204369,8.6026,181.65,181.64,3.24]
[1753037204672,3.1,181.65,181.64,3.24]
[1753037205874,8.6026,181.65,181.64,3.24]
[1753037206068,8.6026,181.65,181.63,2.68070971]
[1753037206371,3.1,181.7,181.59,3.24]
[1753037206671,3.1,181.7,181.64,5.92070971]
[1753037206973,3.1,181.67,181.66,3.24]
[1753037208966,3.1,181.67,181.66,5.92070971]
[1753037210882,3.1,181.67,181.66,2.68070971]
[1753037211081,3.1,181.67,181.66,5.92070971]
[1753037212282,8.602,181.67,181.66,5.92070971]
[1753037213182,2.68070971,181.72,181.64,5.92070971]
[1753037213485,3.1,181.71,181.64,5.92070971]
[1753037213880,5.5022,181.67,181.64,8.18360971]
[1753037214085,5.5022,181.67,181.65,3.24]
[1753037214086,3.1,181.66,181.65,3.24]
[1753037215178,3.1,181.73,181.65,3.24]
[1753037215682,8.6023,181.67,181.66,5.92070971]
[1753037217488,3.1,181.67,181.66,5.92070971]
[1753037217779,194.50447265,181.74,181.67,3.24]
[1753037217780,3.1,181.73,181.67,3.24]
[1753037217984,3.1,181.73,181.69,5.62070971]
[1753037219085,194.50447265,181.74,181.7,2.94]
[1753037219086,5.501,181.71,181.7,2.94]
[1753037219387,3.13,181.71,181.69,5.62070971]
[1753037219588,5.5012,181.7,181.67,2.68070971]
[1753037219789,194.50447265,181.74,181.67,5.62070971]
[1753037219790,3.13,181.69,181.67,5.62070971]
[1753037220087,194.50447265,181.74,181.67,5.62070971]
[1753037220283,3.13,181.68,181.67,5.62070971]
[1753037221483,3.13,181.68,181.67,2.94]
[1753037221691,3.13,181.68,181.65,2.94]
[1753037222385,5.502,181.68,181.65,2.94]
[1753037222588,3.13,181.67,181.65,2.94]
[1753037223185,3.13,181.67,181.64,2.68070971]
[1753037223391,5.5025,181.66,181.64,2.68070971]
[1753037223590,3.13,181.65,181.64,2.68070971]
[1753037224290,3.13,181.65,181.64,5.62070971]
[1753037226095,3.13,181.66,181.65,2.94]
[1753037227289,3.13,181.73,181.65,2.94]
[1753037227593,3.13,181.73,181.66,5.62070971]
[1753037228185,3.13,181.73,181.67,2.94]
[1753037228396,3.13,181.73,181.59,107.26945073]
[1753037228397,3.13,181.73,181.69,2.94]
[1753037228587,3.13,181.73,181.7,2.94]
[1753037228793,3.13,181.73,181.68,2.68070971]
[1753037229001,3.13,181.73,181.68,5.62070971]
[1753037229191,5.501,181.71,181.68,5.62070971]
[1753037229495,3.13,181.7,181.68,5.62070971]
[1753037229695,3.13,181.69,181.68,5.62070971]
[1753037230098,3.13,181.69,181.68,2.68070971]
[1753037230396,3.13,181.69,181.67,2.94]
[1753037230701,3.13,181.67,181.66,11.12280971]
[1753037230894,3.13,181.67,181.66,5.62070971]
[1753037231198,3.13,181.67,181.66,2.68070971]
[1753037231798,3.13,181.67,181.66,5.62070971]
[1753037231987,8.6315,181.69,181.66,11.12300971]
[1753037232187,3.13,181.73,181.67,2.94]
[1753037232394,5.5017,181.68,181.67,2.94]
[1753037232594,8.6317,181.68,181.67,2.94]
[1753037232992,5.5017,181.68,181.67,2.94]
[1753037233195,3.13,181.73,181.67,2.94]
[1753037233404,3.13,181.73,181.68,2.68070971]
[1753037233995,3.13,181.73,181.68,5.62070971]
[1753037234299,3.13,181.69,181.68,5.62070971]
[1753037237500,3.13,181.69,181.68,11.12240971]
[1753037237700,3.13,181.69,181.68,5.62070971]
[1753037240804,8.6314,181.69,181.68,5.62070971]
[1753037241409,3.13,181.69,181.68,5.62070971]
[1753037242308,3.13,181.73,181.64,4.59721371]
[1753037242509,3.13,181.73,181.67,5.62070971]
[1753037242804,3.13,181.68,181.67,5.62070971]
[1753037243909,3.13,181.68,181.65,2.68070971]
[1753037244108,5.5022,181.67,181.65,2.68070971]
[1753037244404,3.13,181.66,181.65,5.62070971]
[1753037244605,3.13,181.66,181.65,2.68070971]
[1753037244805,8.6323,181.66,181.65,2.68070971]
[1753037245205,3.13,181.66,181.65,2.68070971]
[1753037245408,3.13,181.66,181.65,5.62070971]
[1753037245800,8.6323,181.66,181.65,5.62070971]
[1753037246713,3.13,181.66,181.65,5.62070971]
[1753037247405,8.6323,181.66,181.65,5.62070971]
[1753037247916,8.6323,181.66,181.65,2.68070971]
[1753037250118,2.96,181.68,181.65,5.65070971]
[1753037250416,2.96,181.73,181.67,5.65070971]
[1753037250818,2.96,181.73,181.69,2.68070971]
[1753037251017,2.96,181.73,181.7,2.97]
[1753037251217,194.50447265,181.74,181.69,2.68070971]
[1753037251413,2.96,181.71,181.69,5.65070971]
[1753037251917,5.5011,181.7,181.69,5.65070971]
[1753037252116,8.4611,181.7,181.69,2.68070971]
[1753037252916,8.4611,181.7,181.69,5.65070971]
[1753037254121,8.4611,181.7,181.69,2.68070971]
[1753037254722,2.96,181.7,181.69,5.65070971]
[1753037254923,2.96,181.73,181.7,2.97]
[1753037255124,2.96,181.72,181.71,5.65070971]
[1753037257420,2.96,181.73,181.72,2.97]
[1753037258125,8.4602,181.73,181.72,2.97]
[1753037258428,2.96,181.72,181.67,2.97]
[1753037258724,2.96,181.72,181.7,2.68070971]
[1753037258925,2.96,181.72,181.7,5.65070971]
[1753037259428,5.5008,181.71,181.7,5.65070971]
[1753037259623,8.4608,181.71,181.7,5.65070971]
[1753037259824,2.96,181.73,181.71,2.97]
[1753037260025,2.96,181.71,181.7,5.65070971]
[1753037261828,2.96,181.71,181.7,2.97]
[1753037262126,8.76954366,181.79,181.7,2.68070971]
[1753037262330,5.5008,181.71,181.7,2.68070971]
[1753037262718,8.4608,181.71,181.7,2.68070971]
[1753037263222,2.96,181.71,181.7,5.65070971]
[1753037263528,8.4606,181.72,181.71,2.97]
[1753037263924,2.96,181.79,181.71,2.97]
[1753037264227,2.96,181.79,181.73,2.68070971]
[1753037264428,5.4998,181.75,181.73,2.68070971]
[1753037264628,2.96,181.74,181.73,5.65070971]
[1753037265329,2.96,181.76,181.75,8.4695]
[1753037265529,2.96,181.76,181.75,11.15020971]
[1753037265721,8.76954366,181.84,181.75,8.18020971]
[1753037265926,2.96,181.78,181.76,2.97]
[1753037266428,2.96,181.83,181.77,2.68070971]
[1753037266627,2.96,181.83,181.77,5.65070971]
[1753037266823,2.96,181.83,181.75,2.97]
[1753037267530,5.4988,181.78,181.76,5.65070971]
[1753037267725,2.96,181.77,181.76,5.65070971]
[1753037267930,8.459,181.77,181.76,2.68070971]
[1753037271227,5.4995,181.76,181.74,107.13070971]
[1753037271425,2.96,181.75,181.74,107.13070971]
[1753037271934,8.4596,181.75,181.74,107.13070971]
[1753037272132,2.96,181.75,181.74,107.13070971]
[1753037274838,8.4596,181.75,181.74,107.13070971]
[1753037275241,2.96,181.75,181.74,107.13070971]
[1753037275836,8.4596,181.75,181.74,104.16070971]
[1753037276841,8.4596,181.75,181.74,107.13070971]
[1753037278637,3.11,181.8,181.75,3.11]
[1753037278844,3.11,181.8,181.79,2.68070971]
[1753037279040,8.6081,181.8,181.79,2.68070971]
[1753037279234,8.6081,181.8,181.77,104.39]
[1753037279235,3.11,181.8,181.77,107.07070971]
[1753037279441,3.11,181.85,181.77,103.96070971]
[1753037279640,3.11,181.85,181.77,2.68070971]
[1753037280545,5.4985,181.79,181.77,2.68070971]
[1753037280740,3.11,181.85,181.78,3.11]
[1753037280943,3.11,181.85,181.8,5.79070971]
[1753037281141,3.11,181.85,181.81,3.11]
[1753037281349,3.11,181.85,181.81,5.79070971]
[1753037281540,5.4972,181.84,181.82,3.11]
[1753037281740,3.11,181.83,181.82,3.11]
[1753037281944,3.11,181.83,181.81,11.28830971]
[1753037282146,3.11,181.82,181.81,11.28830971]
[1753037282340,3.11,181.88,181.83,5.4972]
[1753037282548,3.11,181.88,181.84,3.11]
[1753037282948,3.11,181.88,181.78,101.28]
[1753037282949,3.11,181.88,181.82,5.79070971]
[1753037283147,3.11,181.88,181.82,3.11]
[1753037283344,3.11,181.88,181.82,5.79070971]
[1753037283947,4.53997024,181.89,181.81,2.68070971]
[1753037284148,3.11,181.88,181.81,2.68070971]
[1753037284447,5.4984,181.79,181.78,104.39]
[1753037284750,2.68070971,181.85,181.75,2.68070971]
[1753037284751,3.11,181.84,181.75,2.68070971]
[1753037284949,5.4992,181.77,181.75,2.68070971]
[1753037285245,3.11,181.76,181.75,3.11]
[1753037285445,5.4996,181.75,181.74,2.68070971]
[1753037285741,3.11,181.75,181.74,5.79070971]
[1753037285947,3.11,181.75,181.74,2.68070971]
[1753037286137,2.68070971,181.8,181.72,107.15070971]
[1753037286338,3.11,181.79,181.72,107.15070971]
[1753037287141,5.5001,181.74,181.72,107.15070971]
[1753037287349,3.11,181.73,181.72,104.47]
[1753037288148,3.11,181.79,181.72,104.47]
[1753037288348,3.11,181.79,181.73,3.11]
[1753037288650,3.11,181.77,181.74,3.11]
[1753037289041,3.11,181.77,181.72,101.36]
[1753037289247,3.11,181.77,181.73,3.11]
[1753037289443,3.11,181.77,181.74,3.11]
[1753037289654,3.11,181.76,181.75,3.11]
[1753037290047,3.11,181.76,181.73,3.11]
[1753037290246,3.11,181.81,181.74,3.11]
[1753037290550,3.11,181.81,181.74,5.79070971]
[1753037290745,3.11,181.76,181.75,3.11]
[1753037291751,8.6093,181.76,181.75,3.11]
[1753037292546,5.4997,181.75,181.73,3.11]
[1753037292750,3.11,181.75,181.74,3.11]
[1753037292945,2.68070971,181.8,181.74,3.11]
[1753037293153,3.11,181.76,181.75,3.11]
[1753037294358,5.4991,181.77,181.74,2.68070971]
[1753037294657,8.6091,181.77,181.76,3.11]
[1753037296259,3.11,181.77,181.76,3.11]
[1753037296459,8.6088,181.78,181.76,3.11]
[1753037296760,8.6088,181.78,181.77,3.11]
[1753037296960,3.11,181.84,181.77,3.11]
[1753037297157,3.11,181.84,181.79,3.11]
[1753037297758,5.4977,181.82,181.79,3.11]
[1753037297957,3.11,181.84,181.79,3.11]
[1753037298161,3.11,181.84,181.78,3.11]
[1753037298361,3.11,181.79,181.77,3.11]
[1753037298552,8.6082,181.8,181.77,3.11]
[1753037299662,5.4984,181.79,181.77,3.11]
[1753037299856,8.6084,181.79,181.78,3.11]
[1753037300363,3.11,181.79,181.78,3.11]
[1753037301960,8.6084,181.79,181.78,3.11]
[1753037302160,3.11,181.79,181.78,3.11]
[1753037302662,8.6084,181.79,181.78,3.11]
[1753037303566,5.4988,181.78,181.76,5.79070971]